[Event "Norwegian Team Championship 2019"]
[Site "Drammen"]
[Date "2019.06.01"]
[Round "3.8"]
[White "Gandrud, Vegar Koi"]
[Black "Tenold, Andreas"]
[Result "1-0"]
[ECO "E16"]
[WhiteElo "2325"]
[BlackElo "1969"]
[Annotator "ChessBase"]
[PlyCount "89"]
[EventDate "2019.05.30"]
[EventType "swiss"]
[EventCountry "NOR"]
[SourceTitle "playchess.com"]
[Source "ChessBase"]
[SourceQuality "1"]
[TimeControl "40/5400:1800"]

1. d4 {[%emt 0:00:02]} Nf6 {[%emt 0:00:14]} 2. c4 {[%emt 0:00:04]} e6 {[%emt 0:00:24]} 3. Nf3 {[%emt 0:00:03]} b6 {[%emt 0:00:18]} 4. g3 {[%emt 0:00:06]} Bb7 {[%emt 0:01:18]} 5. Bg2 {[%emt 0:00:03]} Bb4+ {[%emt 0:00:10]} 6. Nbd2 {[%emt 0:00:17]} O-O {[%emt 0:00:59]} 7. O-O {[%emt 0:00:06]} a5 {[%emt 0:00:16]} 8. Qc2 {[%emt 0:01:39]} Bxd2 {[%emt 0:01:04]} 9. Bxd2 {[%emt 0:00:08]} Be4 {[%emt 0:00:08]} 10. Qb3 {[%emt 0:02:12]} d6 {[%emt 0:02:24]} 11. Rfd1 {[%emt 0:07:47]} Nbd7 {[%emt 0:02:28]} 12. Bc3 {[%emt 0:05:02]} Qb8 {[%emt 0:03:14]} 13. Bf1 {[%emt 0:05:24]} Qa7 {[%emt 0:18:31]} 14. Nd2 {[%emt 0:00:57]} a4 {[%emt 0:09:01]} 15. Qa3 {[%emt 0:02:46]} Bb7 {[%emt 0:01:30]} 16. b4 {[%emt 0:06:39]} axb3 {[%emt 0:02:34]} 17. Qxa7 {[%emt 0:00:07]} Rxa7 {[%emt 0:00:06]} 18. axb3 {[%emt 0:00:03]} Rfa8 {[%emt 0:01:09]} 19. Rxa7 {[%emt 0:00:11]} Rxa7 {[%emt 0:00:05]} 20. Ra1 {[%emt 0:00:05]} Rxa1 {[%emt 0:02:09]} 21. Bxa1 {[%emt 0:00:02]} Kf8 {[%emt 0:07:53]} 22. f3 {[%emt 0:00:16]} Ke7 {[%emt 0:01:19]} 23. e4 {[%emt 0:02:17]} Ne8 {[%emt 0:05:41]} 24. Kf2 {[%emt 0:01:26]} c5 {[%emt 0:01:10]} 25. Ke3 {[%emt 0:02:42]} e5 {[%emt 0:03:24]} 26. dxe5 {[%emt 0:01:42]} dxe5 {[%emt 0:00:16]} 27. f4 {[%emt 0:00:45]} f6 {[%emt 0:01:15]} 28. Bh3 {[%emt 0:01:03]} Nd6 {[%emt 0:01:58]} 29. Kd3 {[%emt 0:02:48]} Nf7 {[%emt 0:02:37]} 30. Ke3 {[%emt 0:07:11]} Kd6 {[%emt 0:03:17]} 31. Nf3 {[%emt 0:01:07]} Nb8 {[%emt 0:01:02]} 32. Bc3 {[%emt 0:07:13]} Nc6 {[%emt 0:01:16]} 33. Kd3 {[%emt 0:03:29]} Ba6 {[%emt 0:02:27]} 34. Bd2 {[%emt 0:04:41]} Nfd8 {[%emt 0:01:45]} 35. fxe5+ {[%emt 0:01:57]} fxe5 {[%emt 0:00:19]} 36. Be3 {[%emt 0:06:46]} h6 {[%emt 0:01:07]} 37. Nh4 {[%emt 0:01:15]} Ne6 {[%emt 0:01:55]} 38. Nf5+ {[%emt 0:00:17]} Kc7 {[%emt 0:00:30]} 39. Nxh6 {[%emt 0:01:29]} Ned4 {[%emt 0:01:30]} 40. Nf5 {[%emt 0:00:28]} Nxb3 {[%emt 0:00:06]} 41. Nxg7 {[%emt 0:31:12]} Nba5 {[%emt 0:30:04]} 42. Ne8+ {[%emt 0:00:00]} Kd8 {[%emt 0:00:00]} 43. Nd6 {[%emt 0:00:00]} Kc7 {[%emt 0:00:00]} 44. Nb5+ {[%emt 0:00:00]} Kd8 {[%emt 0:00:00]} 45. Bg5+ {[%emt 0:00:00]} 1-0

[Event "Norwegian Team Championship 2019"]
[Site "Drammen"]
[Date "2019.06.01"]
[Round "3.9"]
[White "Haldorsen, Benjamin"]
[Black "Hjelmas, Lars"]
[Result "1-0"]
[ECO "A10"]
[WhiteElo "2437"]
[BlackElo "2251"]
[Annotator "ChessBase"]
[PlyCount "59"]
[EventDate "2019.05.30"]
[EventType "swiss"]
[EventCountry "NOR"]
[SourceTitle "playchess.com"]
[Source "ChessBase"]
[SourceQuality "1"]
[TimeControl "40/5400:1800"]

1. c4 {[%emt 0:00:05]} f5 {[%emt 0:00:34]} 2. g3 {[%emt 0:02:27]} g6 {[%emt 0:00:15]} 3. Bg2 {[%emt 0:00:25]} Bg7 {[%emt 0:00:12]} 4. Nc3 {[%emt 0:00:05]} Nf6 {[%emt 0:01:08]} 5. d3 {[%emt 0:03:08]} d6 {[%emt 0:04:00]} 6. e4 {[%emt 0:00:14]} c6 {[%emt 0:00:25]} 7. Nge2 {[%emt 0:02:17]} O-O {[%emt 0:00:45]} 8. O-O {[%emt 0:00:12]} Na6 {[%emt 0:04:28]} 9. h3 {[%emt 0:03:26]} fxe4 {[%emt 0:04:53]} 10. dxe4 {[%emt 0:00:35]} Be6 {[%emt 0:01:16]} 11. b3 {[%emt 0:01:10]} Nc5 {[%emt 0:02:47]} 12. Nd4 {[%emt 0:04:48]} Bf7 {[%emt 0:00:48]} 13. Be3 {[%emt 0:07:10]} e5 {[%emt 0:05:43]} 14. Nde2 {[%emt 0:00:41]} Ne6 {[%emt 0:02:40]} 15. f4 {[%emt 0:03:04]} exf4 {[%emt 0:12:15]} 16. gxf4 {[%emt 0:00:52]} Qe7 {[%emt 0:07:18]} 17. Qd2 {[%emt 0:06:24]} Nc5 {[%emt 0:08:53]} 18. Ng3 {[%emt 0:05:55]} Rad8 {[%emt 0:00:17]} 19. Rad1 {[%emt 0:03:02]} Rfe8 {[%emt 0:00:44]} 20. Qc2 {[%emt 0:01:56]} d5 {[%emt 0:16:15]} 21. cxd5 {[%emt 0:10:02]} Nfxe4 {[%emt 0:04:51]} 22. Ncxe4 {[%emt 0:00:25]} Nxe4 {[%emt 0:00:08]} 23. Nxe4 {[%emt 0:01:00]} cxd5 {[%emt 0:05:25]} 24. Bc5 {[%emt 0:00:18]} Qc7 {[%emt 0:01:01]} 25. Ng5 {[%emt 0:00:06]} b6 {[%emt 0:01:14]} 26. Nxf7 {[%emt 0:00:04]} Kxf7 {[%emt 0:00:04]} 27. Bxd5+ {[%emt 0:00:09]} Rxd5 {[%emt 0:00:06]} 28. Rxd5 {[%emt 0:00:02]} bxc5 {[%emt 0:00:05]} 29. Qc4 {[%emt 0:00:09]} Kf8 {[%emt 0:00:53]} 30. Rxc5 {[%emt 0:00:16]} 1-0

[Event "Norwegian Team Championship 2019"]
[Site "Drammen"]
[Date "2019.06.01"]
[Round "3.10"]
[White "Breivik, Lars"]
[Black "Nilsen, Joachim Birger"]
[Result "1/2-1/2"]
[ECO "A10"]
[WhiteElo "2165"]
[BlackElo "2401"]
[Annotator "ChessBase"]
[PlyCount "51"]
[EventDate "2019.05.30"]
[EventType "swiss"]
[EventCountry "NOR"]
[SourceTitle "playchess.com"]
[Source "ChessBase"]
[SourceQuality "1"]
[TimeControl "40/5400:1800"]

1. c4 {[%emt 0:00:03]} b6 {[%emt 0:02:16]} 2. g3 {[%emt 0:00:09]} Bb7 {[%emt 0:00:06]} 3. Nf3 {[%emt 0:00:03]} Bxf3 {[%emt 0:00:19]} 4. exf3 {[%emt 0:00:08]} c5 {[%emt 0:00:03]} 5. d4 {[%emt 0:00:06]} Nc6 {[%emt 0:00:07]} 6. d5 {[%emt 0:01:58]} Nd4 {[%emt 0:00:27]} 7. Be3 {[%emt 0:02:07]} Nf5 {[%emt 0:00:35]} 8. Nc3 {[%emt 0:05:53]} g6 {[%emt 0:04:10]} 9. Bh3 {[%emt 0:00:39]} Nd6 {[%emt 0:04:27]} 10. Qe2 {[%emt 0:04:19]} Bg7 {[%emt 0:26:51]} 11. Ne4 {[%emt 0:01:21]} Nc8 {[%emt 0:01:47]} 12. O-O {[%emt 0:15:05]} f5 {[%emt 0:02:38]} 13. Nc3 {[%emt 0:00:09]} Nf6 {[%emt 0:00:26]} 14. Bf4 {[%emt 0:07:04]} O-O {[%emt 0:00:20]} 15. Rfe1 {[%emt 0:01:02]} Nh5 {[%emt 0:01:19]} 16. Be5 {[%emt 0:00:39]} Bf6 {[%emt 0:06:22]} 17. a4 {[%emt 0:07:06]} Nd6 {[%emt 0:09:03]} 18. Bf1 {[%emt 0:04:49]} a5 {[%emt 0:03:51]} 19. f4 {[%emt 0:10:01]} Ng7 {[%emt 0:00:35]} 20. Bxd6 {[%emt 0:02:45]} exd6 {[%emt 0:00:06]} 21. Nb5 {[%emt 0:00:05]} Re8 {[%emt 0:01:41]} 22. Qd2 {[%emt 0:00:11]} Rxe1 {[%emt 0:00:25]} 23. Rxe1 {[%emt 0:00:06]} Qf8 {[%emt 0:00:06]} 24. Bd3 {[%emt 0:02:47]} Re8 {[%emt 0:00:47]} 25. Re3 {[%emt 0:00:07]} Re7 {[%emt 0:03:04]} 26. Bb1 {[%emt 0:05:37]} 1/2-1/2

[Event "Norwegian Team Championship 2019"]
[Site "Drammen"]
[Date "2019.06.01"]
[Round "3.11"]
[White "Stokke, Kjetil"]
[Black "Ludvigsen, Frode"]
[Result "1-0"]
[ECO "E06"]
[WhiteElo "2343"]
[BlackElo "2064"]
[Annotator "ChessBase"]
[PlyCount "125"]
[EventDate "2019.05.30"]
[EventType "swiss"]
[EventCountry "NOR"]
[SourceTitle "playchess.com"]
[Source "ChessBase"]
[SourceQuality "1"]
[TimeControl "40/5400:1800"]

1. c4 {[%emt 0:00:03]} e6 {[%emt 0:01:58]} 2. Nf3 {[%emt 0:00:13]} d5 {[%emt 0:00:35]} 3. d4 {[%emt 0:00:06]} c5 {[%emt 0:00:14]} 4. g3 {[%emt 0:00:10]} Nc6 {[%emt 0:00:12]} 5. Bg2 {[%emt 0:00:06]} Nf6 {[%emt 0:00:14]} 6. O-O {[%emt 0:00:05]} Be7 {[%emt 0:05:15]} 7. dxc5 {[%emt 0:00:50]} Bxc5 {[%emt 0:00:13]} 8. a3 {[%emt 0:00:06]} a5 {[%emt 0:13:10]} 9. Nc3 {[%emt 0:00:13]} d4 {[%emt 0:01:37]} 10. Na4 {[%emt 0:01:10]} Ba7 {[%emt 0:01:35]} 11. Bf4 {[%emt 0:07:24]} Qe7 {[%emt 0:00:17]} 12. Ne5 {[%emt 0:01:53]} Nxe5 {[%emt 0:00:06]} 13. Bxe5 {[%emt 0:00:05]} O-O {[%emt 0:00:07]} 14. Bxd4 {[%emt 0:04:46]} Bxd4 {[%emt 0:03:48]} 15. Qxd4 {[%emt 0:00:07]} e5 {[%emt 0:00:03]} 16. Qc5 {[%emt 0:02:42]} Qxc5 {[%emt 0:00:38]} 17. Nxc5 {[%emt 0:00:06]} Rb8 {[%emt 0:00:03]} 18. Rfd1 {[%emt 0:06:06]} b5 {[%emt 0:02:46]} 19. Rac1 {[%emt 0:05:46]} bxc4 {[%emt 0:05:09]} 20. Rd2 {[%emt 0:01:30]} Bf5 {[%emt 0:00:40]} 21. e4 {[%emt 0:01:24]} Rfc8 {[%emt 0:01:30]} 22. Na6 {[%emt 0:01:08]} Rb6 {[%emt 0:01:46]} 23. Rxc4 {[%emt 0:03:26]} g6 {[%emt 0:06:09]} 24. Rxc8+ {[%emt 0:11:14]} Bxc8 {[%emt 0:00:04]} 25. Rd8+ {[%emt 0:03:25]} Kg7 {[%emt 0:00:05]} 26. Rxc8 {[%emt 0:00:10]} Rxa6 {[%emt 0:00:01]} 27. f3 {[%emt 0:01:14]} Nd7 {[%emt 0:06:21]} 28. Bh3 {[%emt 0:03:39]} Nf8 {[%emt 0:00:34]} 29. Rc5 {[%emt 0:02:14]} Kf6 {[%emt 0:00:22]} 30. Bf1 {[%emt 0:07:12]} Rb6 {[%emt 0:02:51]} 31. Rb5 {[%emt 0:01:57]} Rxb5 {[%emt 0:03:25]} 32. Bxb5 {[%emt 0:00:06]} Ne6 {[%emt 0:00:03]} 33. Kf2 {[%emt 0:00:24]} Nd4 {[%emt 0:00:07]} 34. Bc4 {[%emt 0:00:07]} Ke7 {[%emt 0:00:02]} 35. f4 {[%emt 0:01:40]} f6 {[%emt 0:00:06]} 36. fxe5 {[%emt 0:01:18]} fxe5 {[%emt 0:00:02]} 37. Kg2 {[%emt 0:02:07]} h6 {[%emt 0:05:41]} 38. Kh3 {[%emt 0:00:25]} Nc2 {[%emt 0:00:55]} 39. Kh4 {[%emt 0:07:27]} Ne3 {[%emt 0:03:41]} 40. Bb5 {[%emt 0:01:17]} Kf6 {[%emt 0:02:30]} 41. Be8 {[%emt 0:32:51]} Nf1 {[%emt 0:44:35]} 42. b4 {[%emt 0:00:59]} axb4 {[%emt 0:00:06]} 43. axb4 {[%emt 0:00:07]} Nd2 {[%emt 0:00:00]} 44. Bc6 {[%emt 0:00:00]} Nc4 {[%emt 0:00:00]} 45. Bd5 {[%emt 0:00:00]} Nb6 {[%emt 0:00:00]} 46. Kg4 {[%emt 0:00:00]} Nd7 {[%emt 0:00:00]} 47. Kf3 {[%emt 0:00:00]} Ke7 {[%emt 0:00:00]} 48. Ke3 {[%emt 0:00:00]} Nb6 {[%emt 0:00:00]} 49. Kd3 {[%emt 0:00:00]} Kd6 {[%emt 0:00:00]} 50. Bf7 {[%emt 0:00:00]} g5 {[%emt 0:00:00]} 51. Ke3 {[%emt 0:00:00]} Nd7 {[%emt 0:00:00]} 52. Bg6 {[%emt 0:00:00]} Nb6 {[%emt 0:00:00]} 53. Kf3 {[%emt 0:00:00]} Ke6 {[%emt 0:00:00]} 54. Kg4 {[%emt 0:00:00]} Kf6 {[%emt 0:00:00]} 55. Bf5 {[%emt 0:00:00]} Nc4 {[%emt 0:00:00]} 56. Kh5 {[%emt 0:00:00]} Kg7 {[%emt 0:00:00]} 57. b5 {[%emt 0:00:00]} Nb6 {[%emt 0:00:00]} 58. h4 {[%emt 0:00:00]} gxh4 {[%emt 0:00:00]} 59. Kxh4 {[%emt 0:00:00]} Nc4 {[%emt 0:00:00]} 60. Kh5 {[%emt 0:00:00]} Nb6 {[%emt 0:00:00]} 61. Be6 {[%emt 0:00:00]} Na4 {[%emt 0:00:00]} 62. g4 {[%emt 0:00:00]} Nc5 {[%emt 0:00:00]} 63. b6 {[%emt 0:00:00]} 1-0

[Event "Norwegian Team Championship 2019"]
[Site "Drammen"]
[Date "2019.06.01"]
[Round "3.12"]
[White "Edvardsen, Ragnar"]
[Black "Gullaksen, Eirik"]
[Result "0-1"]
[ECO "B32"]
[WhiteElo "1947"]
[BlackElo "2327"]
[Annotator "ChessBase"]
[PlyCount "79"]
[EventDate "2019.05.30"]
[EventType "swiss"]
[EventCountry "NOR"]
[SourceTitle "playchess.com"]
[Source "ChessBase"]
[SourceQuality "1"]
[TimeControl "40/5400:1800"]

1. e4 {[%emt 0:00:16]} c5 {[%emt 0:00:09]} 2. Nf3 {[%emt 0:00:19]} Nc6 {[%emt 0:00:10]} 3. d4 {[%emt 0:00:22]} cxd4 {[%emt 0:00:16]} 4. Nxd4 {[%emt 0:00:09]} e5 {[%emt 0:01:07]} 5. Nb5 {[%emt 0:03:57]} d6 {[%emt 0:00:11]} 6. a4 {[%emt 0:03:54]} Be7 {[%emt 0:01:44]} 7. Be3 {[%emt 0:02:06]} Nf6 {[%emt 0:02:35]} 8. N1c3 {[%emt 0:02:23]} a6 {[%emt 0:05:38]} 9. Na3 {[%emt 0:00:43]} Ng4 {[%emt 0:02:02]} 10. Nd5 {[%emt 0:05:51]} Nxe3 {[%emt 0:00:34]} 11. Nxe3 {[%emt 0:00:15]} O-O {[%emt 0:02:28]} 12. c3 {[%emt 0:08:16]} Rb8 {[%emt 0:02:20]} 13. Be2 {[%emt 0:02:47]} Be6 {[%emt 0:02:01]} 14. O-O {[%emt 0:02:06]} g6 {[%emt 0:08:38]} 15. Nd5 {[%emt 0:13:00]} Bg5 {[%emt 0:06:51]} 16. Nc2 {[%emt 0:08:07]} f5 {[%emt 0:05:09]} 17. exf5 {[%emt 0:02:10]} gxf5 {[%emt 0:02:12]} 18. f4 {[%emt 0:07:37]} Bh6 {[%emt 0:00:18]} 19. Kh1 {[%emt 0:02:06]} Kh8 {[%emt 0:00:14]} 20. fxe5 {[%emt 0:03:42]} dxe5 {[%emt 0:00:40]} 21. c4 {[%emt 0:05:42]} Qh4 {[%emt 0:05:37]} 22. Qe1 {[%emt 0:02:35]} Qxe1 {[%emt 0:05:15]} 23. Raxe1 {[%emt 0:00:35]} Rbc8 {[%emt 0:01:18]} 24. Nb6 {[%emt 0:03:37]} Rcd8 {[%emt 0:02:32]} 25. Rd1 {[%emt 0:00:43]} Na5 {[%emt 0:05:59]} 26. b4 {[%emt 0:02:13]} Nb3 {[%emt 0:00:20]} 27. Rxd8 {[%emt 0:01:06]} Rxd8 {[%emt 0:00:10]} 28. Rd1 {[%emt 0:00:12]} Rd2 {[%emt 0:02:32]} 29. Rxd2 {[%emt 0:00:19]} Bxd2 {[%emt 0:00:10]} 30. c5 {[%emt 0:00:29]} a5 {[%emt 0:04:43]} 31. bxa5 {[%emt 0:00:54]} Nxc5 {[%emt 0:00:27]} 32. Nc4 {[%emt 0:00:33]} Bc3 {[%emt 0:00:47]} 33. Nd6 {[%emt 0:00:20]} Bxa5 {[%emt 0:00:42]} 34. Ne3 {[%emt 0:00:11]} f4 {[%emt 0:00:38]} 35. Nec4 {[%emt 0:00:11]} Bc3 {[%emt 0:00:14]} 36. Kg1 {[%emt 0:00:02]} e4 {[%emt 0:02:33]} 37. a5 {[%emt 0:00:05]} Kg7 {[%emt 0:01:06]} 38. Kf1 {[%emt 0:00:01]} Bd5 {[%emt 0:01:19]} 39. Bg4 {[%emt 0:00:05]} Kf6 {[%emt 0:00:31]} 40. Ke2 {[%emt 0:00:00] Ke5} 0-1

[Event "Norwegian Team Championship 2019"]
[Site "Drammen"]
[Date "2019.06.01"]
[Round "3.13"]
[White "Kolas, Tore"]
[Black "Elseth, Roar"]
[Result "1-0"]
[ECO "D41"]
[WhiteElo "2120"]
[BlackElo "2288"]
[Annotator "ChessBase"]
[PlyCount "79"]
[EventDate "2019.05.30"]
[EventType "swiss"]
[EventCountry "NOR"]
[SourceTitle "playchess.com"]
[Source "ChessBase"]
[SourceQuality "1"]
[TimeControl "40/5400:1800"]

1. c4 {[%emt 0:00:05]} e6 {[%emt 0:00:35]} 2. Nc3 {[%emt 0:00:07]} d5 {[%emt 0:00:48]} 3. d4 {[%emt 0:00:07]} Nf6 {[%emt 0:01:25]} 4. cxd5 {[%emt 0:01:40]} Nxd5 {[%emt 0:01:52]} 5. e4 {[%emt 0:01:05]} Nxc3 {[%emt 0:00:09]} 6. bxc3 {[%emt 0:00:08]} c5 {[%emt 0:00:03]} 7. Nf3 {[%emt 0:01:32]} cxd4 {[%emt 0:00:06]} 8. cxd4 {[%emt 0:00:12]} Bb4+ {[%emt 0:00:09]} 9. Bd2 {[%emt 0:00:09]} Bxd2+ {[%emt 0:00:04]} 10. Qxd2 {[%emt 0:00:11]} O-O {[%emt 0:00:06]} 11. Bc4 {[%emt 0:00:22]} Nd7 {[%emt 0:05:17]} 12. O-O {[%emt 0:00:10]} b6 {[%emt 0:04:21]} 13. Rfe1 {[%emt 0:00:47]} Bb7 {[%emt 0:00:50]} 14. Rad1 {[%emt 0:02:31]} Rc8 {[%emt 0:03:38]} 15. Bb3 {[%emt 0:00:22]} Qf6 {[%emt 0:11:10]} 16. h3 {[%emt 0:25:01]} Rfd8 {[%emt 0:01:29]} 17. Qe3 {[%emt 0:06:06]} Qe7 {[%emt 0:08:05]} 18. Qf4 {[%emt 0:06:39]} Nf6 {[%emt 0:03:43]} 19. Ne5 {[%emt 0:06:35]} Rc3 {[%emt 0:05:18]} 20. Nc4 {[%emt 0:23:22]} b5 {[%emt 0:20:49]} 21. Na5 {[%emt 0:04:26]} Ba8 {[%emt 0:05:08]} 22. d5 {[%emt 0:02:49]} e5 {[%emt 0:03:39]} 23. Qd2 {[%emt 0:00:51]} Qc7 {[%emt 0:00:16]} 24. Rc1 {[%emt 0:00:29]} Nxe4 {[%emt 0:03:25]} 25. Qb2 {[%emt 0:02:20]} Rxc1 {[%emt 0:03:49]} 26. Qxc1 {[%emt 0:00:04]} Nc3 {[%emt 0:00:19]} 27. Nc6 {[%emt 0:00:06]} b4 {[%emt 0:00:17]} 28. Qg5 {[%emt 0:00:30]} Bxc6 {[%emt 0:00:33]} 29. dxc6 {[%emt 0:00:05]} e4 {[%emt 0:00:14]} 30. Qc5 {[%emt 0:00:43]} a5 {[%emt 0:00:11]} 31. a3 {[%emt 0:00:04]} Rb8 {[%emt 0:00:36]} 32. axb4 {[%emt 0:00:03]} axb4 {[%emt 0:00:05]} 33. Ra1 {[%emt 0:00:08]} Nb5 {[%emt 0:00:28]} 34. Bc4 {[%emt 0:00:05]} Na3 {[%emt 0:00:10]} 35. Bd5 {[%emt 0:00:01]} Re8 {[%emt 0:00:32]} 36. Re1 {[%emt 0:00:01]} Qc8 {[%emt 0:00:09]} 37. Rxe4 {[%emt 0:00:01]} Rxe4 {[%emt 0:00:01]} 38. Bxe4 {[%emt 0:00:01]} Qc7 {[%emt 0:00:08]} 39. Bd5 {[%emt 0:00:00]} g6 {[%emt 0:00:00]} 40. g3 {[%emt 0:00:00]} 1-0

[Event "Norwegian Team Championship 2019"]
[Site "Drammen"]
[Date "2019.06.01"]
[Round "3.14"]
[White "Ingebretsen, Jens E"]
[Black "Laverton, Christian"]
[Result "1-0"]
[ECO "A26"]
[WhiteElo "2243"]
[BlackElo "2115"]
[Annotator "ChessBase"]
[PlyCount "121"]
[EventDate "2019.05.30"]
[EventType "swiss"]
[EventCountry "NOR"]
[SourceTitle "playchess.com"]
[Source "ChessBase"]
[SourceQuality "1"]
[TimeControl "40/5400:1800"]

1. c4 {[%emt 0:04:26]} e5 {[%emt 0:01:07]} 2. Nc3 {[%emt 0:00:19]} Nc6 {[%emt 0:00:39]} 3. g3 {[%emt 0:00:21]} g6 {[%emt 0:00:38]} 4. Bg2 {[%emt 0:00:11]} Bg7 {[%emt 0:00:14]} 5. d3 {[%emt 0:01:07]} Nge7 {[%emt 0:01:40]} 6. Nf3 {[%emt 0:01:36]} O-O {[%emt 0:01:00]} 7. O-O {[%emt 0:00:12]} d6 {[%emt 0:01:15]} 8. Ne1 {[%emt 0:02:42]} Be6 {[%emt 0:02:27]} 9. Nc2 {[%emt 0:03:16]} Qd7 {[%emt 0:02:56]} 10. Nd5 {[%emt 0:00:34]} Rae8 {[%emt 0:04:39]} 11. Rb1 {[%emt 0:07:42]} Nd8 {[%emt 0:02:57]} 12. b4 {[%emt 0:08:09]} Nc8 {[%emt 0:05:57]} 13. Bh1 {[%emt 0:05:21]} c6 {[%emt 0:03:26]} 14. Nde3 {[%emt 0:04:21]} f5 {[%emt 0:04:27]} 15. f4 {[%emt 0:00:39]} Bf7 {[%emt 0:03:41]} 16. Bb2 {[%emt 0:02:39]} Ne6 {[%emt 0:02:50]} 17. Ng2 {[%emt 0:02:57]} Nd4 {[%emt 0:05:23]} 18. e3 {[%emt 0:01:59]} Nxc2 {[%emt 0:02:49]} 19. Qxc2 {[%emt 0:00:05]} Re7 {[%emt 0:02:42]} 20. Nh4 {[%emt 0:10:26]} Nb6 {[%emt 0:09:26]} 21. a4 {[%emt 0:01:06]} Qc7 {[%emt 0:01:32]} 22. a5 {[%emt 0:00:48]} Nd7 {[%emt 0:00:59]} 23. e4 {[%emt 0:01:25]} Be6 {[%emt 0:07:51]} 24. exf5 {[%emt 0:00:40]} gxf5 {[%emt 0:01:30]} 25. Rf2 {[%emt 0:00:37]} exf4 {[%emt 0:01:22]} 26. Rxf4 {[%emt 0:02:31]} Ne5 {[%emt 0:02:10]} 27. Rbf1 {[%emt 0:03:54]} Qd7 {[%emt 0:05:46]} 28. h3 {[%emt 0:03:35]} Ng6 {[%emt 0:01:48]} 29. Nxg6 {[%emt 0:00:15]} hxg6 {[%emt 0:00:06]} 30. Bxg7 {[%emt 0:00:05]} Rxg7 {[%emt 0:00:43]} 31. a6 {[%emt 0:02:35]} bxa6 {[%emt 0:02:26]} 32. Qa4 {[%emt 0:00:10]} d5 {[%emt 0:00:52]} 33. c5 {[%emt 0:01:00]} g5 {[%emt 0:00:25]} 34. R4f2 {[%emt 0:00:31]} f4 {[%emt 0:00:34]} 35. g4 {[%emt 0:00:17]} Qb7 {[%emt 0:00:25]} 36. Re1 {[%emt 0:00:38]} Re7 {[%emt 0:00:26]} 37. Re5 {[%emt 0:00:25]} Bc8 {[%emt 0:00:45]} 38. Rxg5+ {[%emt 0:00:10]} Rg7 {[%emt 0:00:02]} 39. Rxg7+ {[%emt 0:00:31]} Kxg7 {[%emt 0:00:02]} 40. Qa1+ {[%emt 0:00:22]} Kg8 {[%emt 0:00:01]} 41. Qd4 {[%emt 0:30:32]} Qh7 {[%emt 0:02:25]} 42. Bg2 {[%emt 0:00:00]} Qh6 {[%emt 0:05:22]} 43. Rf3 {[%emt 0:00:00]} Be6 {[%emt 0:01:58]} 44. Qe5 {[%emt 0:00:00]} d4 {[%emt 0:00:49]} 45. g5 {[%emt 0:00:00]} Qg6 {[%emt 0:00:21]} 46. Rxf4 {[%emt 0:00:00]} Rxf4 {[%emt 0:03:16]} 47. Qxf4 {[%emt 0:00:00]} Qxd3 {[%emt 0:01:03]} 48. Qb8+ {[%emt 0:00:00]} Kf7 {[%emt 0:01:33]} 49. Qf4+ {[%emt 0:00:00]} Kg8 {[%emt 0:02:36]} 50. Kh2 {[%emt 0:00:00]} Qc4 {[%emt 0:07:34]} 51. Qb8+ {[%emt 0:00:17]} Kf7 {[%emt 0:00:43]} 52. Qxa7+ {[%emt 0:01:38]} Kg6 {[%emt 0:00:31]} 53. Qe7 {[%emt 0:01:04]} Qe2 {[%emt 0:00:16]} 54. Qf6+ {[%emt 0:00:14]} Kh7 {[%emt 0:00:08]} 55. Qxd4 {[%emt 0:02:29]} Bd5 {[%emt 0:00:26]} 56. Qg4 {[%emt 0:00:06]} Qe5+ {[%emt 0:00:14]} 57. Qg3 {[%emt 0:00:09]} Qb2 {[%emt 0:00:03]} 58. h4 {[%emt 0:00:45]} Kg6 {[%emt 0:00:11]} 59. Qd6+ {[%emt 0:00:06]} Kh5 {[%emt 0:00:01]} 60. Qg3 {[%emt 0:00:13]} Qd2 {[%emt 0:00:08]} 61. g6 {[%emt 0:00:10]} 1-0